Cogmind - Beta 13 @@@ ROGUE MODE // 2024.06.10 @ 15:07:31 Player: JackZewap Result: Destroyed by G-34 Mercenary with Small Laser Performance ------------- Evolutions (0) 0 Regions Visited (2) 400 Robots Destroyed (22) 110 Value Destroyed (469) 469 Prototype IDs (0) 0 Alien Tech Used (0) 0 Bonus (0) 0 TOTAL SCORE: 979 Bonus ------- None Cogmind --------- Core Integrity 0/250 Matter 279/300 Energy 100/100 System Corruption 2% Temperature Cool (11) Movement Rolling (110) Ox2 Location -10/Mines Parts ------- > --- POWER (1) -------- (None) > --- PROPULSION (2) --- Wheel Wheel > --- UTILITY (2) ------ High-capacity Storage Unit Targeting Computer > --- WEAPON (2) ------- Light Assault Rifle > --- INVENTORY (20) --- Ion Engine Light Ion Engine Light Treads Wheel Improved Heat Sink Visual Processing Unit Visual Processing Unit Sensor Array Sensor Array Signal Interpreter Targeting Computer Decoy Drone Bay Peak State ------------ > --- POWER ------------ Ion Engine > --- PROPULSION ------- Light Treads Light Treads > --- UTILITY ---------- Improved Heat Sink Medium Storage Unit > --- WEAPON ----------- Light Assault Rifle Light Assault Rifle > --- INVENTORY -------- Light Ion Engine Light Treads Small Storage Unit Visual Processing Unit Visual Processing Unit Sensor Array Sensor Array Signal Interpreter Targeting Computer Targeting Computer [Rating: 10] Favorites ----------- Power Ion Engine Engine Ion Engine Propulsion Light Treads Treads Light Treads Wheel Wheel Utility Medium Storage Unit Device Improved Heat Sink Storage Medium Storage Unit Processor Targeting Computer Protection Light Armor Plating Weapon Assault Rifle Ballistic Gun Assault Rifle Build | -11 -10 -10 ------- Run | Yrd Mat Min Slots Evolved . | . . . Power . | . . . Propulsion . | . . . Utility . | . . . Weapon . | . . . Parts Attached 19 | 6 9 4 Power 3 | 1 . 2 Engine 3 | 1 . 2 Core . | . . . Reactor . | . . . Propulsion 6 | 2 3 1 Treads 3 | 2 1 . Leg . | . . . Wheel 3 | . 2 1 Hover . | . . . Flight . | . . . Utility 6 | 1 4 1 Device 1 | . 1 . Storage 3 | 1 2 . Processor 1 | . . 1 Hackware . | . . . Protection 1 | . 1 . Artifact . | . . . Weapon 4 | 2 2 . Energy Gun . | . . . Energy Cannon . | . . . Ballistic Gun 4 | 2 2 . Ballistic Cannon . | . . . Launcher . | . . . Special Weapon . | . . . Impact Weapon . | . . . Slashing Weapon . | . . . Piercing Weapon . | . . . Special Melee Weapon . | . . . Unidentified Prototypes . | . . . Parts Lost 5 | . 1 4 Power 2 | . . 2 Propulsion 1 | . . 1 Utility 1 | . 1 . Weapon 1 | . . 1 Highest Loss Streak 4 | . 1 4 To Critical Strikes . | . . . Average Slot Usage (%) 96 | . 99 88 Engine 13 | . 14 12 Treads 19 | . 26 . Wheel 8 | . 1 27 Device 1 | . 1 3 Storage 14 | . 14 14 Protection 8 | . 11 . Ballistic Gun 27 | . 28 27 Naked Turns . | . . . Heaviest Build 48 | 14 48 48 Greatest Support 40 | 40 40 20 Greatest Overweight (x) 2 | 1 2 2 Average Overweight (x) . | . . 2 Largest Inventory Capacity 20 | 8 20 20 Average Capacity 12 | 7 10 20 Most Carried 16 | . 10 16 Average Carried 8 | . 6 13 Final Capacity 20 | 8 20 20 Final Carried 13 | . 10 13 Class Distribution -------------------- 100% | Mutant Dominant Class ---------------- Mutant | -10/Materials Mutant | -10/Mines Resources | -11 -10 -10 ----------- Run | Yrd Mat Min Matter Collected 728 | 237 400 91 Remotely . | . . . Salvage Created 599 | . 449 150 Parts 53 | . 41 12 Haulers Intercepted 1 | . 1 . Recyclers Shooed 2 | . 2 . Parts Field Recycled . | . . . Retrieved Matter . | . . . Parts Self-Destructed . | . . . Prevented . | . . . Kills | -11 -10 -10 ------- Run | Yrd Mat Min Combat Hostiles Destroyed 17 | . 12 5 Guns 17 | . 12 5 Classes Destroyed 6 | . 5 1 Tunneler 1 | . . 1 Hauler 1 | . 1 . Operator 1 | . 1 . Watcher 2 | . 2 . Swarmer 8 | . 5 3 Grunt 9 | . 7 2 Best Kill Streak 3 | . 3 3 Combat Bots Only 3 | . 3 3 Max Kills in Single Turn 2 | . 2 1 Gunslinging 1 | . 1 . Exploded . | . . . Melee . | . . . Uniques/NPCs Destroyed . | . . . Combat | -11 -10 -10 -------- Run | Yrd Mat Min Hostile Shots Fired 133 | . 74 59 Missed 42 | . 25 17 Damage Taken 1046 | . 488 558 Core 252 | . 37 215 Absorbed by Shields . | . . . Core Remaining (%) 100 | 100 . . Volleys Fired 91 | . 56 35 Largest 2 | . 2 2 Hottest 40 | . 40 40 Shots Fired 176 | . 112 64 Gun 176 | . 112 64 Cannon . | . . . Launcher . | . . . Special . | . . . Kinetic 176 | . 112 64 Thermal . | . . . Explosive . | . . . Electromagnetic . | . . . Robot Hit Streak 14 | . 14 8 Robot Miss Streak 6 | . 6 2 Penetration Max . | . . . Secondary Targets 3 | . 3 . Max Gunslinging Chain 1 | . 1 . Shots Hit Robots 115 | . 69 46 Core Hits 44 | . 30 14 Critical Kills . | . . . Critical Parts Destroyed . | . . . Critical Strikes . | . . . Melee Attacks . | . . . Impact . | . . . Slashing . | . . . Piercing . | . . . Sneak Attacks . | . . . Combat Hostiles . | . . . Follow-up Attacks . | . . . Damage Inflicted 1217 | . 850 367 Guns 1213 | . 850 363 Cannons . | . . . Explosions . | . . . Melee . | . . . Ramming 4 | . . 4 Kinetic 1213 | . 850 363 Thermal . | . . . Explosive . | . . . Electromagnetic . | . . . Impact . | . . . Slashing . | . . . Piercing . | . . . Highest Corruption 2 | . 2 2 Average Corruption 2 | . 2 2 Corruption Purged . | . . . Corruption Blocked . | . . . Effects 8 | . 5 3 Message Errors 1 | . 1 . Matter Fused 2 | . 2 . Energy Discharges 1 | . . 1 Parts Fused 1 | . 1 . Data Loss (minor) 2 | . 1 1 Weapon Failures 1 | . . 1 Overload Shots . | . . . Overflow Damage . | . . . Projectiles . | . . . Explosions . | . . . Melee . | . . . Knockbacks . | . . . Impact . | . . . Kinetic . | . . . Secondary . | . . . Self-Inflicted Damage 2 | . . 2 Shots . | . . . Rammed 1 | . . 1 Targets Rammed 1 | . . 1 Kicked . | . . . Crushed . | . . . Highest Temperature 38 | . 38 24 Average Temperature 9 | . 10 8 Received Heat Transfer 546 | . 207 339 Siege Activations . | . . . Robots Corrupted . | . . . Combat Hostiles . | . . . Parts Fried . | . . . Impact Corruptions . | . . . Robots Melted . | . . . Combat Hostiles . | . . . Parts Melted . | . . . Heat Transferred . | . . . Parts Sabotaged . | . . . Parts Stolen . | . . . Parts Stripped . | . . . Power Chain Reactions . | . . . Alert | -11 -10 -10 ------- Run | Yrd Mat Min Peak Influence 249 | . 249 192 Initial 52 | . . 52 Average 88 | . 85 109 Maximum Alert Level 1 | . 1 . Low Security (%) 94 | 100 92 100 Level 1 5 | . 7 . Level 2 . | . . . Level 3 . | . . . Level 4 . | . . . Level 5 . | . . . High Security . | . . . Max Security . | . . . Squads Dispatched 4 | . 4 . Investigation 2 | . 2 . Extermination . | . . . Reinforcement 2 | . 2 . Assault . | . . . Garrison . | . . . Intercept . | . . . Searches Triggered . | . . . Construction Impeded . | . . . Haulers Reinforced . | . . . Active Scanning Responses . | . . . Cargo Convoy Interrupts . | . . . Stealth | -11 -10 -10 --------- Run | Yrd Mat Min Distress Signals 1 | . 1 . Communications Jammed . | . . . Distress Signals . | . . . Times Spotted 27 | . 20 7 Peak Tracking Total 3 | . 3 2 Tactical Retreats 1 | . . 1 Traps | -11 -10 -10 ------- Run | Yrd Mat Min Traps Triggered 2 | . 2 . Indirectly . | . . . Trap Hack Attempts . | . . . Triggered . | . . . Disarmed . | . . . Reprogrammed . | . . . Reused . | . . . Traps Extracted . | . . . Installed . | . . . Triggered . | . . . Machines | -11 -10 -10 ---------- Run | Yrd Mat Min Machines Disabled . | . . . Max in Single Turn . | . . . Machines Repaired . | . . . Machines Dismantled . | . . . Machines Sabotaged . | . . . Overloaded Fab Kills . | . . . Hacking | -11 -10 -10 --------- Run | Yrd Mat Min Machines Accessed 7 | . 5 2 Terminals 5 | . 4 1 Fabricators . | . . . Repair Stations . | . . . Recycling Units 1 | . 1 . Scanalyzers . | . . . Garrison Access . | . . . Total Hacks 18 | . 15 3 Successful 8 | . 7 1 Failed 10 | . 8 2 Catastrophic 1 | . 1 . Database Lockouts . | . . . Manual 19 | . 17 2 Terminals 13 | . 11 2 Fabricators . | . . . Repair Stations . | . . . Recycling Units 4 | . 4 . Scanalyzers . | . . . Garrison Access . | . . . Terminal Hacks 1 | . . 1 Open Door 1 | . . 1 Fabricator Hacks . | . . . Repair Station Hacks . | . . . Recycling Unit Hacks 1 | . 1 . Retrieve Components 1 | . 1 . Scanalyzer . | . . . Garrison Access Hacks . | . . . Unauthorized Hacks 6 | . 6 . Terminals 4 | . 4 . Track 1 | . 1 . Botnet 3 | . 3 . Fabricators . | . . . Repair Stations . | . . . Recycling Units 2 | . 2 . Monitor 1 | . 1 . Mask 1 | . 1 . Scanalyzers . | . . . Garrison Access . | . . . Data Cores Recovered . | . . . Used . | . . . Hacking Detections 6 | . 5 1 Full Trace Events 1 | . 1 . Feedback Events . | . . . Feedback Blocked . | . . . Robot Schematics Acquired . | . . . Robots Built . | . . . Authchips . | . . . Time . | . . . Total Robot Build Rating . | . . . Part Schematics Acquired . | . . . Parts Built . | . . . Authchips . | . . . Time . | . . . Total Part Build Rating . | . . . Parts Repaired . | . . . Time . | . . . Parts Recycled . | . . . Recycled Matter . | . . . Retrieved Matter . | . . . Retrieved Components 10 | . 10 . Parts Scanalyzed . | . . . Part Schematics Acquired . | . . . Parts Damaged . | . . . Bothacking | -11 -10 -10 ------------ Run | Yrd Mat Min Used RIF Installer . | . . . Robots Hacked . | . . . Non-combat . | . . . Combat . | . . . Robot Hacks Applied . | . . . Relay Couplers Released . | . . . Fabnet Peak Effective % . | . . . Robots Rewired . | . . . Allies Hacked . | . . . Hacks Repelled . | . . . Allies | -11 -10 -10 -------- Run | Yrd Mat Min Total Allies . | . . . Largest Group . | . . . Highest-Rated Group . | . . . Highest-Rated Ally . | . . . Total Orders . | . . . Ally Attacks . | . . . Total Damage . | . . . Kills . | . . . Allies Corrupted . | . . . Allies Melted . | . . . Intel | -11 -10 -10 ------- Run | Yrd Mat Min Robot Analysis Total . | . . . Derelict Logs Recovered 1 | . . 1 Drone Launches . | . . . Drone Recoveries . | . . . Exploration | -11 -10 -10 ------------- Run | Yrd Mat Min Turns Passed 1472 | 51 1060 361 Spaces Moved 764 | 30 528 206 Core 5 | 5 . . Treads 505 | 25 480 . Legs . | . . . Wheels 254 | . 48 206 Hover . | . . . Flight . | . . . Fastest Speed 50 | 50 80 110 Average Speed 142 | 143 155 110 Slowest Speed 160 | 160 160 110 Overloaded Moves . | . . . Propulsion Burnouts . | . . . Robots Hopped . | . . . Cave-ins Triggered . | . . . Exploration Rate (%) 38 | 3 83 30 Regions Visited 2 Branch Regions 1 Pre-discovered Areas 1 | . . 1 Known Exits Taken . | . . . Unknown Exits Taken 2 | 1 1 . Scrap Searched . | . . . Spaces Dug . | . . . Terrain Destroyed . | . . . Melee . | . . . Projectile . | . . . AOE . | . . . Terrain Rammed . | . . . Walls Destroyed . | . . . Machines Disabled . | . . . Actions | -11 -10 -10 --------- Run | Yrd Mat Min Total 988 | 35 664 289 Wait 89 | . 50 39 Move 762 | 29 527 206 Hop . | . . . Pick Up 15 | . 12 3 Fast Attach 11 | 6 5 . Attach 3 | . . 3 Detach 2 | . 1 1 Swap 5 | . 4 1 Drop 9 | . 9 . Fire 91 | . 56 35 Melee . | . . . Ram 1 | . . 1 Kick . | . . . Crush . | . . . Escape Stasis . | . . . Rewire . | . . . Trap . | . . . Miscellaneous . | . . . Route ------- -11/Scrapyard -10/Materials (discovered 4 exits: [*Mat x2] / *Min x2) -10/Mines History --------- Turn | Location | Event 11 | -11/Scrapyard | Discovered new exit (range 16) 52 | -11/Scrapyard | Entered Materials 309 | -10/Materials | Build established: Mutant 791 | -10/Materials | Discovered new exit (range 4) 955 | -10/Materials | Discovered new exit (range 12) 1024 | -10/Materials | Discovered new exit (range 13) 1083 | -10/Materials | Discovered new exit (range 15) 1112 | -10/Materials | Entered Mines 1142 | -10/Mines | Learned location of Mines (-9) 1147 | -10/Mines | Deemed a non-threat by the Exiles lab entrance 1188 | -10/Mines | Found the Drone Emporium 1193 | -10/Mines | Found Prototype Device 1465 | -10/Mines | Core integrity fell below 50% 1471 | -10/Mines | Core integrity fell below 20% 1473 | -10/Mines | Destroyed by G-34 Mercenary with Small Laser Last Messages --------------- 01399_ Acquired 27 matter. 01401_ Acquired 10 matter. 01404_ R-06 Scavenger collects Heat Sink. 01408_ R-06 Scavenger collects Sml. Laser. 01410_ Acquired 2 matter. 01411_ System corrupted: Lgt. Assault Rifle jammed. 01412_ Acquired 1 matter. 01413_ R-06 Scavenger collects Ion Engine. 01418_ R-06 Scavenger collects Aluminum Leg. 01419_ G-47 Trooper destroyed. 01422_ Acquired 6 matter. 01438_ Lgt. Ion Engine destroyed. 01438_ Critical hit (Burn: +37). 01447_ Wheel destroyed. 01459_ Lgt. Assault Rifle destroyed. 01462_ Critical hit (Burn: +37). 01463_ System corrupted: Component data lost. 01463_ Ion Engine destroyed. 01464_ Slammed into G-47 Trooper. 01464_ Destabilizing: Core damaged (-12). Map ----- +----------------------------------------------------+ | ????????????????????# #####???## #? | | ????????????????????# #???# #? | | ????????????????????##### #??## #### ##? | | ????????????????????????# #??# ##??#### #?? | | ????????????????????????# #??## #??????# #?? | | ????????????????????????# #???###??????# #?? | | ????????????????????????# #??########### #?? | | ????????????????????????# #??# #?? | | ???????????????????????## #### ###########?? | | ???????????????????????# % #???????????? | | ???????????????????????# ##### #???????????? | | ???????????????????????# ????# #???????????? | | ???????????????????????# ????# #???????????? | | ???????????????????????# #???# #???????????? | | ???????????????????????# #???# #???????????? | | ???????????????????????# #???# #???????????? | | ??????????????????????## ##### #???????????? | | ??????????????????????# # #???????????? | | ??????????????????????# """ #[#???????????? | | ??????????????????????# """ #%#???????????? | | ??????????????????????# "" #???????????? | | ??????????????????????# g ###???????????? | | ??????????????????????### g###?????????????? | | ????????????????????????# #???????????????? | | ????????????????????????# #???????????????? | | ????????????????????????#@ #???????????????? | | ????????????????????????# ????????????? | | ????????????????????????#$ #????????? | | ????????????????????????# #????????? | | ???????????????????????? ##????????? | | ???????????????????????? #?????????? | | ????????????????????????# ##?????????? | | ????????????????????????# r ##??????????? | | ????????????????????????## #???????????? | | ??????????????????????????## #???????????? | | ????????????????????????????# #???????????? | | ????????????????????????????? ???????????? | | ????????????????????????????? ???????????? | | ?????????????????????????????? ??????????? | | ???????????????????????????????????????????? | | ???????????????????????????????????????????? | | ???????????????????????????????????????????? | | ???????????????????????????????????????????? | | ???????????????????????????????????????????? | | ???????????????????????????????????????????? | | ???????????????????????????????????????????? | | ???????????????????????????????????????????? | | | | | | | +----------------------------------------------------+ Best States ------------- Heat Dissipation 39 Energy Generation 10 Energy Capacity 250 Matter Stores 300 Matter Capacity 300 Sight Range 16 Terrain Scan Density 10 Armor Coverage 150 Evasion (%) 40 Targeting Accuracy 5 Recoil Reduction 2 Item Schematics ----------------- None Robot Schematics ------------------ None Fabricated ------------ Nothing Alien Tech Used ----------------- None Achievements -------------- None Challenges ------------ None Game ------ Seed ElectronMatterBuckler Manual? 0 Play Time 00:12:46 Cumulative 80.0 hours Start 2024.06.10 @ 14:56:30 End 2024.06.10 @ 15:07:31 Sessions 1 Manual Loads 0 Difficulty Rogue Special Mode None Game No. 88 Rogue 82 Adventurer 6 Explorer 0 Win Type - Total 0 Types 0/0/0/0/0/0/0/0/0 Lore% 34 Gallery% 50 Achievement% 37 Wizard Run 0 Options --------- Layout 0 ASCII 0 Keyboard 1 Movement Numpad Keybinds 0 Fullscreen 0 Font 14/Smallcaps Map View 76x50 Zoom Use 0% Tactical HUD 1 Map Filters NONE Filters NONE Steam 1 RUN: c8cb0041-fd7f-4049-9d4f-3ff02ba4e147